bitfinex-derivatives/quotes_SOLF0:USTF0_20220108
["timestamp","ask_amount","ask_price","bid_price","bid_amount"]
[1641678053077,6.92281066,144.5,144.37,1.73]
[1641678053276,4.0,144.49,144.37,1.73]
[1641678053475,6.92281066,144.5,144.36,27.66479]
[1641678053676,6.92281066,144.5,144.36,36.48179]
[1641678053875,63.6928,144.52,144.47,27.66479]
[1641678054076,14.59519823,144.52,144.47,34.59579]
[1641678054678,14.59519823,144.52,144.47,38.59579]
[1641678054876,14.59519823,144.52,144.48,1.73]
[1641678055079,2.13267865,144.53,144.5,4.0]
[1641678055276,14.59519823,144.55,144.51,1.729]
[1641678055677,8.92218105,144.56,144.51,1.729]
[1641678055879,8.92218105,144.56,144.49,1.729]
[1641678056079,38.16395325,144.58,144.49,1.729]
[1641678056278,4.0,144.56,144.47,27.66479]
[1641678056479,4.0,144.63,144.42,1.729]
[1641678056780,6.91802145,144.6,144.47,4.0]
[1641678056978,91.23469,144.65,144.48,1.729]
[1641678057181,6.91634679,144.63,144.48,5.729]
[1641678057582,4.0,144.63,144.49,3.93223962]
[1641678057782,6.9213732,144.53,144.49,3.93223962]
[1641678057980,27.66479,144.52,144.49,3.93223962]
[1641678058179,4.0,144.55,144.42,27.66479]
[1641678058180,9.723,144.58,144.42,27.66479]
[1641678058380,6.92089418,144.54,144.43,1.73]
[1641678058580,6.91826075,144.59,144.43,19.47426075]
[1641678058783,6.91826075,144.59,144.47,4.0]
[1641678058980,38.16395325,144.62,144.48,8.64486846]
[1641678059180,38.16395325,144.62,144.54,4.0]
[1641678059381,38.16395325,144.62,144.55,1.729]
[1641678059981,4.0,144.66,144.57,27.66479]
[1641678060183,6.91634679,144.63,144.57,35.14779]
[1641678060381,6.91562932,144.65,144.57,35.14779]
[1641678060782,10.91562932,144.65,144.57,7.483]
[1641678060982,6.91682518,144.62,144.49,1.728]
[1641678061182,13.93782518,144.62,144.49,1.728]
[1641678061382,7.021,144.62,144.49,1.728]
[1641678061785,17.93782518,144.62,144.48,1.729]
[1641678061986,27.66479,144.6,144.52,27.66479]
[1641678062687,6.91682518,144.62,144.52,27.66479]
[1641678062885,65.9348,144.68,144.53,1.729]
[1641678063087,6.91586846,144.64,144.53,1.729]
[1641678063888,27.66479,144.62,144.53,1.729]
[1641678064089,27.66479,144.62,144.52,27.66479]
[1641678064488,6.91634679,144.63,144.52,27.66479]
[1641678064687,6.91634679,144.63,144.53,5.729]
[1641678064889,6.91634679,144.63,144.54,4.0]
[1641678065089,6.91634679,144.63,144.55,1.729]
[1641678065292,6.91634679,144.63,144.55,8.912]
[1641678065692,27.66479,144.65,144.55,7.183]
[1641678065892,27.66479,144.65,144.6,27.66479]
[1641678066092,38.16395325,144.71,144.63,4.0]
[1641678066292,38.16395325,144.71,144.65,4.0]
[1641678066493,7.16395325,144.71,144.67,4.0]
[1641678066692,7.16395325,144.71,144.69,4.0]
[1641678066895,7.16395325,144.76,144.69,4.0]
[1641678067092,7.16395325,144.76,144.68,1.727]
[1641678067695,7.16395325,144.76,144.69,4.0]
[1641678067895,10.3,144.78,144.71,27.66479]
[1641678068092,10.3,144.78,144.71,38.78779]
[1641678068294,4.0,144.89,144.74,4.0]
[1641678068594,95.72539288,144.97,144.75,4.0]
[1641678068595,74.47115518,144.9,144.75,4.0]
[1641678068793,6.90345518,144.9,144.76,5.726]
[1641678068997,6.90345518,144.9,144.76,1.726]
[1641678069195,6.90202574,144.93,144.77,6.90202574]
[1641678069397,27.6128676,144.94,144.79,4.0]
[1641678069594,6.90226394,144.93,144.8,1.725]
[1641678069794,6.9051236,144.87,144.8,10.1]
[1641678069994,27.66479,144.83,144.8,8.375]
[1641678070194,27.66479,144.83,144.75,1.726]
[1641678070594,31.66479,144.83,144.72,1.726]
[1641678070795,34.45879,144.83,144.72,1.726]
[1641678070996,6.90846287,144.8,144.72,1.726]
[1641678071194,17.98746287,144.8,144.72,1.726]
[1641678071397,13.98746287,144.8,144.67,1.726]
[1641678071596,6.90560044,144.86,144.78,4.0]
[1641678071795,6.90107312,144.95,144.81,4.0]
[1641678071995,6.90107312,144.95,144.87,27.66479]
[1641678072195,27.66479,144.99,144.87,34.25279]
[1641678072596,6.90107312,144.95,144.87,6.588]
[1641678072796,10.90274039,144.92,144.87,6.588]
[1641678072997,6.90274039,144.92,144.87,6.588]
[1641678073197,6.90393179,144.89,144.81,7.196]
[1641678073397,6.9051236,144.87,144.76,1.725]
[1641678073897,27.66479,144.81,144.71,29.39079]
[1641678074096,42.98877563,144.81,144.71,29.39079]
[1641678074400,6.91037247,144.76,144.69,27.66479]
[1641678074696,6.91180536,144.73,144.6,1.727]
[1641678074896,13.27680536,144.73,144.6,1.727]
[1641678075096,6.365,144.73,144.61,3.92758051]
[1641678075497,6.365,144.73,144.62,1.728]
[1641678075896,6.365,144.73,144.62,29.39279]
[1641678076097,27.66479,144.69,144.63,3.92758051]
[1641678076298,6.91037247,144.76,144.64,4.0]
[1641678076498,6.90941754,144.78,144.65,1.727]
[1641678077098,6.90941754,144.78,144.66,3.92758051]
[1641678077300,66.9791,144.8,144.66,3.92758051]
[1641678077599,6.90894017,144.79,144.66,3.92758051]
[1641678077900,8.325,144.83,144.67,5.727]
[1641678078101,27.66479,144.78,144.7,27.66479]
[1641678078302,6.685,144.78,144.7,27.66479]
[1641678078500,4.0,144.75,144.67,29.39179]
[1641678078699,4.0,144.7,144.63,1.727]
[1641678078901,4.0,144.7,144.59,1.728]
[1641678078902,9.881,144.7,144.59,1.728]
[1641678079101,4.0,144.69,144.59,1.728]
[1641678079301,4.0,144.67,144.53,6.91323885]
[1641678079502,7.894,144.67,144.6,3.92844746]
[1641678080003,7.894,144.67,144.55,3.92844746]
[1641678080304,7.894,144.67,144.56,1.728]
[1641678080502,67.1652,144.77,144.58,20.0]
[1641678080805,27.62907961,144.85,144.71,4.0]
[1641678081004,31.62144806,144.89,144.71,7.96]
[1641678081202,4.0,144.77,144.71,7.96]
[1641678081405,4.0,144.8,144.71,7.96]
[1641678081604,12.0,144.84,144.71,7.96]
[1641678082005,27.66479,144.78,144.69,27.66479]
[1641678082204,4.0,144.76,144.67,27.66479]
[1641678082406,31.66479,144.78,144.67,27.66479]
[1641678082605,31.66479,144.78,144.65,6.90750846]
[1641678082606,4.0,144.77,144.65,6.90750846]
[1641678082811,4.0,144.68,144.57,1.727]
[1641678083012,6.91443388,144.67,144.53,1.728]
[1641678083212,10.91443388,144.67,144.52,29.37808814]
[1641678083414,6.91658597,144.63,144.49,1.728]
[1641678083712,9.923,144.63,144.53,3.92956932]
[1641678084112,5.923,144.63,144.52,27.66479]
[1641678084313,5.923,144.63,144.54,4.0]
[1641678084513,27.66479,144.65,144.55,1.729]
[1641678085213,12.0,144.76,144.61,4.0]
[1641678085413,6.91132767,144.74,144.61,6.25]
[1641678085813,6.91132767,144.74,144.62,1.728]
[1641678086016,34.57611767,144.74,144.63,27.66479]
[1641678086214,95.43969,144.77,144.64,5.727]
[1641678086417,27.66479,144.77,144.64,24.50155495]
[1641678086814,27.66479,144.77,144.65,3.92956932]
[1641678088216,10.91085003,144.75,144.65,5.65656932]
[1641678088418,12.51085003,144.75,144.65,3.92956932]
[1641678088621,10.91252203,144.71,144.55,8.63952203]
[1641678088819,4.0,144.69,144.56,14.45799069]
[1641678089119,6.9153902,144.65,144.58,3.92907242]
[1641678089319,14.9713902,144.65,144.58,3.92907242]
[1641678089719,14.9713902,144.65,144.57,3.92907242]
[1641678090020,27.66479,144.61,144.57,3.92907242]
[1641678090320,35.03079,144.61,144.57,3.92907242]
[1641678090819,7.366,144.61,144.53,3.92907242]
[1641678091019,7.366,144.61,144.54,1.729]
[1641678091223,136.2598,144.73,144.54,1.729]
[1641678091419,132.2598,144.73,144.58,6.91108884]
[1641678091620,14.45799069,144.75,144.62,4.0]
[1641678091919,14.45799069,144.75,144.65,6.90750846]
[1641678092119,14.45799069,144.75,144.7,27.66479]
[1641678092320,14.45799069,144.75,144.7,8.681]
[1641678092720,4.0,144.82,144.7,8.681]
[1641678093020,4.0,144.81,144.7,8.681]
[1641678093220,4.0,144.8,144.7,8.681]
[1641678093422,34.57182136,144.83,144.71,1.727]
[1641678093622,6.90917884,144.78,144.67,1.726]
[1641678093822,6.90917884,144.78,144.64,4.0]
[1641678094021,6.90822424,144.8,144.69,31.66479]
[1641678094221,6.90750846,144.82,144.7,4.0]
[1641678094421,6.90750846,144.82,144.71,1.726]
[1641678094721,4.0,144.81,144.71,1.726]
[1641678094920,4.0,144.81,144.7,3.92641645]
[1641678094921,4.0,144.76,144.7,3.92641645]
[1641678095121,11.333,144.79,144.69,27.66479]
[1641678095421,4.0,144.81,144.66,27.66479]
[1641678095620,7.019,144.81,144.66,29.39179]
[1641678095821,7.019,144.81,144.66,33.39179]
[1641678096021,7.019,144.81,144.74,27.66479]
[1641678096223,7.019,144.81,144.74,34.60179]
[1641678096720,6.90583889,144.85,144.74,34.60179]
[1641678096921,4.0,144.83,144.74,6.937]
[1641678097222,4.0,144.8,144.69,14.45799069]
[1641678097420,11.639,144.8,144.69,14.45799069]
[1641678097819,7.639,144.8,144.66,1.727]
[1641678098020,27.66479,144.71,144.64,14.45799069]
[1641678098220,34.54879,144.71,144.64,14.45799069]
[1641678098423,41.46131203,144.71,144.64,14.45799069]
[1641678098622,34.54879,144.71,144.61,1.728]
[1641678099024,41.46155096,144.71,144.61,1.728]
[1641678099221,6.91347783,144.69,144.62,3.92849114]
[1641678099421,10.91347783,144.69,144.62,3.92849114]
[1641678099622,6.91347783,144.69,144.57,1.728]
[1641678099822,6.91347783,144.69,144.56,18.45799069]
[1641678099823,41.46155096,144.71,144.56,18.45799069]
[1641678100023,6.91323885,144.7,144.57,1.728]
[1641678100222,34.54879,144.71,144.58,3.92853277]
[1641678100422,38.54879,144.71,144.58,3.92853277]
[1641678100622,6.91467294,144.67,144.58,3.92853277]
[1641678101225,6.91467294,144.67,144.57,6.65709966]
[1641678101424,15.43967294,144.67,144.59,3.92853277]
[1641678101823,8.525,144.67,144.59,9.39853277]
[1641678102023,8.525,144.67,144.6,27.66479]
[1641678102223,8.525,144.67,144.6,29.39279]
[1641678102423,15.43943388,144.67,144.6,1.728]
[1641678102624,4.0,144.66,144.61,3.92853277]
[1641678102826,6.91682518,144.62,144.5,40.30224533]
[1641678103025,6.91682518,144.62,144.56,14.45799069]
[1641678103026,8.53,144.62,144.56,14.45799069]
[1641678103928,8.53,144.62,144.54,27.66479]
[1641678104128,27.66479,144.6,144.54,27.66479]
[1641678104327,12.53,144.62,144.55,3.92987479]
[1641678104528,4.0,144.57,144.55,3.92987479]
[1641678104729,7.347,144.57,144.51,14.45799069]
[1641678104927,7.347,144.57,144.53,3.93050749]
[1641678105127,35.03057672,144.57,144.55,2.73487743]
[1641678105328,39.03057672,144.57,144.53,14.45799069]
[1641678105529,4.0,144.56,144.53,14.45799069]
[1641678105830,35.03057672,144.57,144.53,14.45799069]
[1641678106031,4.0,144.54,144.49,38.57424533]
[1641678106230,68.5343082,144.54,144.45,57.43523573]
[1641678106430,6.9247282,144.5,144.44,14.60732485]
[1641678106631,14.1367282,144.5,144.44,14.60732485]
[1641678106830,38.57424533,144.67,144.44,14.60732485]
[1641678107030,8.0,144.53,144.45,1.729]
[1641678107230,8.502,144.65,144.45,5.66094721]
[1641678107430,4.0,144.61,144.45,5.66094721]
[1641678107632,4.0,144.61,144.45,3.93194721]
[1641678107830,4.0,144.6,144.46,3.93194721]
[1641678108030,31.66479,144.59,144.48,27.66479]
[1641678108230,4.0,144.57,144.48,27.66479]
[1641678108430,2.0,144.51,144.46,27.66479]
[1641678108632,2.0,144.49,144.42,6.9213732]
[1641678108830,2.0,144.48,144.38,8.92328995]
[1641678109031,6.763,144.48,144.38,6.92328995]
[1641678109232,6.763,144.48,144.38,8.92328995]
[1641678109430,6.763,144.48,144.38,6.92328995]
[1641678109631,2.0,144.46,144.39,3.93356084]
[1641678110033,6.763,144.48,144.39,3.93356084]
[1641678110234,34.42779,144.48,144.39,33.59835084]
[1641678110433,34.42779,144.48,144.4,2.0]
[1641678110633,6.763,144.48,144.4,2.0]
[1641678110832,6.763,144.48,144.41,3.93356084]
[1641678111335,6.763,144.48,144.4,3.93356084]
[1641678111533,6.763,144.48,144.4,5.93356084]
[1641678111735,6.763,144.48,144.4,3.93356084]
[1641678111934,2.0,144.5,144.41,3.93356084]
[1641678112235,27.66479,144.54,144.44,2.0]
[1641678112533,65.5801,144.55,144.45,4.0]
[1641678112734,35.8,144.6,144.5,2.0]
[1641678112935,37.8,144.6,144.46,3.73]
[1641678113135,50.07841522,144.6,144.46,2.0]
[1641678113335,45.158,144.6,144.47,2.0]
[1641678113534,2.0,144.59,144.47,2.0]
[1641678113735,2.0,144.59,144.47,5.83310879]
[1641678113936,2.0,144.56,144.47,5.83310879]
[1641678114136,7.655,144.56,144.47,3.83310879]
[1641678114337,7.655,144.56,144.48,5.83310879]
[1641678114536,9.655,144.56,144.48,5.83310879]
[1641678114736,7.655,144.56,144.46,2.0]
[1641678114937,7.655,144.56,144.47,2.0]
[1641678115237,7.655,144.56,144.47,3.83318475]
[1641678115637,7.655,144.56,144.47,2.0]
[1641678115837,7.655,144.56,144.46,6.91921813]
[1641678115838,2.0,144.55,144.46,6.91921813]
[1641678116037,7.655,144.56,144.48,3.83318475]
[1641678116239,7.655,144.56,144.49,27.66479]
[1641678116439,27.66479,144.59,144.5,2.0]
[1641678116639,29.66479,144.59,144.49,27.66479]
[1641678116841,27.66479,144.59,144.5,2.0]
[1641678117041,131.0194,144.64,144.52,2.0]
[1641678117240,64.66,144.64,144.55,2.0]
[1641678117443,2.0,144.58,144.51,1.729]
[1641678117742,5.442,144.58,144.5,6.91730364]
[1641678117941,5.442,144.58,144.51,2.0]
[1641678118140,5.442,144.58,144.52,31.50393296]
[1641678118541,27.66479,144.63,144.52,27.66479]
[1641678118740,62.66,144.64,144.56,2.0]
[1641678118941,2.0,144.68,144.56,7.032]
[1641678119142,63.9978,144.72,144.57,2.0]
[1641678119345,63.9978,144.72,144.59,2.0]
[1641678119543,2.0,144.68,144.57,6.91395582]
[1641678119744,6.91610761,144.69,144.57,3.83766094]
[1641678120043,2.0,144.66,144.56,2.0]
[1641678120244,8.264,144.66,144.59,27.66479]
[1641678120443,8.264,144.66,144.6,2.0]
[1641678120643,8.264,144.66,144.59,27.66479]
[1641678121145,2.0,144.6,144.57,27.66479]
[1641678121347,2.0,144.58,144.53,1.728]
[1641678121545,8.114,144.6,144.49,2.0]
[1641678121743,2.0,144.59,144.5,2.0]
[1641678121944,8.114,144.6,144.49,2.0]
[1641678122143,8.114,144.6,144.5,3.8389213]
[1641678122144,27.66479,144.58,144.5,3.8389213]
[1641678122343,2.0,144.63,144.54,2.0]
[1641678122543,8.0,144.65,144.58,2.0]
[1641678122742,8.0,144.65,144.58,9.028]
[1641678123143,2.0,144.68,144.58,7.028]
[1641678123347,8.91562932,144.7,144.58,7.028]
[1641678123546,2.0,144.68,144.58,7.028]
[1641678123748,2.0,144.68,144.59,2.0]
[1641678123946,2.0,144.68,144.6,2.0]
[1641678124147,2.0,144.67,144.58,29.66479]
[1641678124345,2.0,144.64,144.56,2.0]
[1641678124547,8.476,144.64,144.55,27.66479]
[1641678124746,8.476,144.64,144.58,2.0]
[1641678124955,8.476,144.64,144.55,31.66479]
[1641678125346,36.58041932,144.7,144.63,2.0]
[1641678125546,34.58041932,144.7,144.62,2.0]
[1641678125948,2.0,144.66,144.6,2.0]
[1641678126147,2.0,144.66,144.56,4.0]
[1641678126347,35.01779,144.7,144.6,2.0]
[1641678126548,2.0,144.68,144.55,62.24449201]
[1641678126747,2.0,144.68,144.6,2.0]
[1641678126947,2.0,144.66,144.6,2.0]
[1641678127348,37.01779,144.7,144.62,2.0]
[1641678127548,29.66479,144.7,144.62,2.0]
[1641678127751,27.66479,144.7,144.6,8.641]
[1641678127949,6.91276096,144.76,144.66,2.0]
[1641678128148,27.66479,144.78,144.66,32.99279]
[1641678128547,27.66479,144.78,144.67,6.90917884]
[1641678128749,27.66479,144.78,144.69,4.0]
[1641678128948,27.66479,144.78,144.74,2.0]
[1641678129147,2.0,144.79,144.74,8.386]
[1641678129347,69.2367,144.81,144.74,8.386]
[1641678129549,71.2367,144.81,144.74,8.386]
[1641678129749,2.0,144.79,144.74,8.386]
[1641678130048,2.0,144.8,144.74,8.386]
[1641678130249,98.90149,144.81,144.72,2.0]
[1641678130448,2.0,144.8,144.71,2.0]
[1641678130648,96.90149,144.81,144.73,2.0]
[1641678131351,69.2367,144.81,144.72,7.412]
[1641678131551,38.72294402,144.87,144.73,4.0]
[1641678131951,38.72294402,144.87,144.78,2.0]
[1641678132153,65.8005,144.88,144.81,2.0]
[1641678132355,27.66479,144.87,144.81,2.0]
[1641678132552,65.8005,144.88,144.81,2.0]
[1641678132553,65.8005,144.88,144.81,7.807]
[1641678132755,65.8005,144.88,144.81,5.807]
[1641678132953,65.8005,144.88,144.84,2.0]
[1641678133155,2.0,144.88,144.76,36.2959136]
[1641678133353,2.0,144.87,144.76,27.66479]
[1641678133654,2.0,144.88,144.78,2.0]
[1641678133853,2.0,144.9,144.78,2.0]
[1641678134053,2.0,144.9,144.84,2.0]
[1641678134254,29.66479,144.87,144.82,2.0]
[1641678134454,27.66479,144.87,144.78,2.0]
[1641678134655,27.66479,144.87,144.76,62.23446521]
[1641678134856,6.90536201,144.92,144.8,4.0]
[1641678135055,67.2672,144.93,144.82,2.0]
[1641678135254,67.2672,144.93,144.8,5.795]
[1641678135457,65.2672,144.93,144.83,2.0]
[1641678135656,65.2672,144.93,144.85,2.0]
[1641678135857,65.2672,144.93,144.8,9.795]
[1641678136058,2.0,144.89,144.81,2.0]
[1641678136258,2.0,144.89,144.79,1.725]
[1641678136259,29.66479,144.88,144.79,27.66479]
[1641678136457,29.66479,144.88,144.76,27.66479]
[1641678136658,2.0,144.87,144.76,27.66479]
[1641678136959,2.0,144.86,144.77,2.0]
[1641678137160,2.0,144.85,144.76,27.66479]
[1641678137360,2.0,144.78,144.71,3.726]
[1641678137560,2.0,144.78,144.68,2.0]
[1641678137561,8.105,144.78,144.68,2.0]
[1641678137760,6.105,144.78,144.65,69.3642]
[1641678137961,6.105,144.78,144.68,2.0]
[1641678138164,6.105,144.78,144.65,65.3642]
[1641678138165,6.105,144.78,144.75,2.0]
[1641678138363,6.105,144.78,144.71,31.39079]
[1641678138563,6.105,144.78,144.69,31.49911789]
[1641678138964,6.105,144.78,144.69,27.66479]
[1641678139164,6.105,144.78,144.71,4.0]
[1641678139365,66.5213,144.81,144.77,2.0]
[1641678139566,14.4451776,144.87,144.77,5.479]
[1641678139766,14.4451776,144.87,144.8,2.0]
[1641678139967,14.4451776,144.87,144.81,2.0]
[1641678140166,14.4451776,144.87,144.85,2.0]
[1641678140367,14.4451776,144.87,144.85,7.538]
[1641678140567,27.66479,144.93,144.85,7.538]
[1641678140966,14.4451776,144.94,144.86,6.90035882]
[1641678141166,14.4451776,144.94,144.93,2.0]
[1641678141367,14.4451776,144.94,144.93,6.581]
[1641678141573,38.72294402,144.98,144.93,5.703]
[1641678141574,14.4451776,144.98,144.93,5.703]
[1641678141766,3.122,144.97,144.93,5.703]
[1641678141966,14.4451776,144.98,144.93,5.703]
[1641678142168,3.122,144.95,144.93,5.703]
[1641678142367,27.66479,144.96,144.89,0.878]
[1641678142569,27.66479,144.96,144.9,0.878]
[1641678142768,27.66479,144.96,144.89,6.527]
[1641678142769,3.122,144.93,144.85,9.262]
[1641678142966,3.122,144.92,144.85,0.878]
[1641678143167,3.122,144.91,144.82,6.90202574]
[1641678143366,3.122,144.91,144.83,0.878]
[1641678143566,72.45799348,144.95,144.88,0.878]
[1641678143769,72.45799348,144.95,144.87,7.078]
[1641678143965,65.5543,144.95,144.87,7.078]
[1641678144166,65.5543,144.95,144.89,0.878]
[1641678144366,65.5543,144.95,144.9,0.878]
[1641678144566,65.5543,144.95,144.85,27.66479]
[1641678144767,65.5543,144.95,144.81,1.725]
[1641678144968,3.122,144.89,144.81,0.878]
[1641678145168,8.719,144.89,144.8,1.725]
[1641678145369,8.719,144.89,144.75,5.725]
[1641678145567,8.719,144.89,144.84,0.878]
[1641678145768,8.719,144.89,144.78,4.0]
[1641678145968,8.719,144.89,144.84,0.878]
[1641678146168,8.719,144.89,144.82,0.878]
[1641678146369,8.719,144.89,144.81,0.878]
[1641678146568,8.719,144.89,144.78,34.56872179]
[1641678146569,8.719,144.89,144.79,2.603]
[1641678146771,8.719,144.89,144.79,0.878]
[1641678147069,8.719,144.89,144.78,27.66479]
[1641678147269,8.719,144.89,144.81,0.878]
[1641678147469,27.66479,144.91,144.81,7.351]
[1641678147673,65.5543,144.95,144.88,0.878]
[1641678147869,27.66479,144.96,144.88,7.19]
[1641678148170,3.122,144.96,144.88,6.312]
[1641678148370,3.122,144.94,144.88,6.312]
[1641678148770,3.122,144.93,144.8,1.725]
[1641678148970,3.122,144.93,144.81,0.878]
[1641678149269,3.122,144.92,144.81,0.878]
[1641678149470,3.122,144.92,144.84,0.878]
[1641678149668,3.122,144.92,144.8,4.0]
[1641678149869,6.427,144.92,144.85,0.878]
[1641678150069,6.427,144.92,144.86,0.878]
[1641678150274,27.66479,144.9,144.82,27.66479]
[1641678150470,27.66479,144.9,144.87,0.878]
[1641678151571,27.66479,144.9,144.86,0.878]
[1641678151874,3.122,144.87,144.8,1.725]
[1641678152072,3.122,144.86,144.76,0.878]
[1641678152272,27.66479,144.83,144.73,27.66479]
[1641678152472,34.97179,144.83,144.76,0.878]
[1641678152672,34.97179,144.83,144.73,28.54279]
[1641678152874,6.90989497,144.82,144.69,1.726]
[1641678153072,38.09379,144.83,144.67,1.727]
[1641678153273,3.122,144.82,144.67,1.727]
[1641678153473,27.66479,144.83,144.68,4.0]
[1641678153673,27.66479,144.83,144.7,4.0]
[1641678153876,27.66479,144.83,144.77,0.878]
[1641678154076,27.66479,144.83,144.75,8.494]
[1641678154275,27.66479,144.83,144.77,0.878]
[1641678154474,3.122,144.81,144.74,0.878]
[1641678154674,34.57444624,144.83,144.72,27.66479]
[1641678155076,14.4451776,144.87,144.79,6.90345518]
[1641678155377,14.4451776,144.87,144.86,0.878]
[1641678155576,12.7771776,144.87,144.86,9.266]
[1641678155775,38.72294402,144.91,144.86,9.266]
[1641678155976,6.90297864,144.97,144.86,8.388]
[1641678156176,6.90297864,144.97,144.91,0.878]
[1641678156376,62.6029,144.98,144.91,0.878]
[1641678156377,62.6029,144.98,144.92,0.878]
[1641678156576,62.6029,144.98,144.91,7.764]
[1641678156775,2.12665776,144.94,144.91,7.764]
[1641678157177,2.12665776,144.94,144.85,1.725]
[1641678157377,2.12665776,144.94,144.85,4.0]
[1641678157579,2.12665776,144.94,144.89,0.878]
[1641678157780,2.12665776,144.94,144.84,27.66479]
[1641678157980,2.12665776,144.94,144.87,0.878]
[1641678158180,2.12665776,144.94,144.9,0.878]
[1641678158379,29.79144776,144.94,144.9,7.332]
[1641678158982,29.79144776,144.94,144.9,6.454]
[1641678159179,2.12665776,144.94,144.9,7.332]
[1641678159380,2.12665776,144.94,144.93,0.878]
[1641678159580,2.12665776,144.94,144.93,6.254]
[1641678159981,101.32584402,144.98,144.93,6.254]
[1641678160180,38.72294402,144.98,144.93,6.254]
[1641678160583,38.72294402,144.98,144.94,0.878]
[1641678161280,38.72294402,144.98,144.9,6.454]
[1641678161481,8.0,145.0,144.83,1.725]
[1641678161680,6.90345518,144.96,144.87,0.878]
[1641678162280,8.0,145.0,144.9,4.0]
[1641678162281,27.66479,144.97,144.9,4.0]
[1641678162481,8.0,145.0,144.94,0.878]
[1641678162683,38.72294402,144.97,144.94,5.445]
[1641678163683,8.0,145.0,144.94,5.445]
[1641678163884,8.0,145.0,144.88,1.724]
[1641678164084,8.0,145.0,144.87,1.724]
[1641678164383,27.66479,144.98,144.9,4.0]
[1641678164684,27.66479,144.98,144.96,0.878]
[1641678165083,27.66479,144.98,144.9,0.878]
[1641678165284,0.39237848,144.95,144.88,0.878]
[1641678165484,34.95879,144.98,144.86,6.90035882]
[1641678165785,7.949,144.95,144.83,1.725]
[1641678165983,7.949,144.95,144.87,0.878]
[1641678166283,7.949,144.95,144.82,27.66479]
[1641678166284,27.66479,144.93,144.91,0.878]
[1641678166684,3.122,144.96,144.81,8.62750216]
[1641678166885,3.122,144.96,144.87,0.878]
[1641678167085,8.93126633,144.97,144.9,0.878]
[1641678167286,8.93126633,144.95,144.9,0.878]
[1641678167485,8.93126633,144.95,144.83,4.0]
[1641678167686,8.93126633,144.95,144.88,0.878]
[1641678168086,8.93126633,144.95,144.93,0.878]
[1641678168288,8.93126633,144.95,144.94,0.878]
[1641678168487,38.72294402,144.97,144.94,0.878]
[1641678168687,38.72294402,144.97,144.93,6.732]
[1641678169286,38.72294402,144.97,144.93,7.61]
[1641678169486,8.93126633,144.99,144.96,0.878]
[1641678169685,8.93126633,144.99,144.96,5.781]
[1641678170286,36.59605633,144.99,144.96,5.781]
[1641678170486,27.66479,144.99,144.96,5.781]
[1641678170686,27.66479,144.99,144.91,0.878]
[1641678170888,34.56657756,144.99,144.84,64.2592]
[1641678171090,6.90226394,144.98,144.85,1.725]
[1641678171289,95.48969,144.99,144.85,4.0]
[1641678171488,8.93126633,144.98,144.85,10.011]
[1641678171888,46.72294402,145.0,144.97,0.878]
[1641678172090,10.02021681,145.07,144.97,8.575]